bitfinex-derivatives/quotes_ETHF0:USTF0_20250110
["timestamp","ask_amount","ask_price","bid_price","bid_amount"]
[1736540365539,0.00136854,3282.8,3282.0,3.2078]
[1736540365540,0.30467,3282.1,3282.0,3.2078]
[1736540366042,1.69184,3282.3,3281.7,40.8]
[1736540366341,0.3047,3281.8,3281.7,41.1047]
[1736540368147,0.3047,3281.8,3281.7,40.8]
[1736540368739,0.30472,3281.5,3281.4,3.2078]
[1736540369033,2.11922247,3281.6,3280.9,3.6468]
[1736540369233,0.30476,3281.2,3281.1,0.30476]
[1736540369639,0.30474,3281.4,3281.3,0.30474]
[1736540370035,0.30473,3281.5,3281.4,0.30473]
[1736540370233,0.30472,3281.6,3281.5,0.30472]
[1736540370438,0.9076,3282.0,3281.3,44.0078]
[1736540370640,0.3047,3281.8,3281.7,0.3047]
[1736540371442,0.30469,3281.9,3281.8,0.30469]
[1736540376949,5.32702247,3282.9,3281.9,0.76172]
[1736540377247,0.30463,3282.5,3282.4,0.30464]
[1736540377548,0.4822,3282.7,3282.6,0.30462]
[1736540377850,0.78681,3282.7,3282.6,0.30462]
[1736540380152,0.4822,3282.7,3282.6,0.30462]
[1736540380955,0.30597854,3282.8,3282.7,0.30461]
[1736540381453,0.30464,3282.4,3282.3,0.30464]
[1736540381646,2.11922247,3282.6,3282.0,0.4782]
[1736540381847,0.00136854,3282.8,3282.1,44.0078]
[1736540382047,0.30464,3282.6,3282.5,0.30462]
[1736540383454,0.30464,3282.5,3282.4,0.30463]
[1736540383851,0.30466,3282.3,3282.2,0.30465]
[1736540384751,0.30466,3282.3,3282.2,0.30344904]
[1736540384958,0.30465,3282.4,3282.3,0.30464]
[1736540385249,0.3046,3282.8,3282.1,44.0078]
[1736540385449,0.3046,3282.8,3282.7,0.3046]
[1736540385450,0.30461,3282.8,3282.7,0.3046]
[1736540386147,1.2149,3282.9,3282.8,0.3046]
[1736540386646,0.30462,3282.7,3282.6,0.30461]
[1736540391853,0.30463,3282.6,3282.5,0.30462]
[1736540392856,0.30463,3282.5,3282.4,3.51244]
[1736540393458,0.30463,3282.6,3282.5,0.30462]
[1736540393955,0.30463,3282.6,3282.1,41.10466]
[1736540393956,2.11922247,3282.6,3282.1,41.10466]
[1736540394147,0.30466,3282.2,3282.1,40.8]
[1736540394347,0.3047,3281.9,3281.8,0.30469]
[1736540394752,0.3047,3281.9,3281.8,41.10469]
[1736540398959,0.30468,3282.0,3281.9,0.30468]
[1736540399757,0.30468,3282.0,3281.9,41.10468]
[1736540399955,1.4293,3282.1,3281.9,41.10468]
[1736540400159,0.30464,3282.5,3282.4,0.30463]
[1736540400364,0.30462,3282.7,3282.6,0.30461]
[1736540401156,1.403,3282.8,3282.2,4.1593]
[1736540401352,0.30464,3282.5,3282.4,0.30463]
[1736540401954,0.30463,3282.6,3282.5,0.30462]
[1736540403658,1.403,3282.8,3282.3,3.2078]
[1736540403854,1.403,3282.8,3282.7,0.30461]
[1736540404049,0.3046,3282.9,3282.7,3.2078]
[1736540404263,1.22508,3283.1,3283.0,0.30458]
[1736540404452,0.30457,3283.1,3283.0,0.30458]
[1736540404766,0.74207,3283.2,3283.1,0.30457]
[1736540405359,0.74207,3283.2,3283.1,41.10457]
[1736540407758,0.4375,3283.2,3283.1,41.10457]
[1736540408066,0.30457,3283.3,3283.2,0.30456]
[1736540409065,0.30457,3283.2,3283.1,44.31237]
[1736540409567,0.30457,3283.2,3283.1,44.0078]
[1736540409765,0.30457,3283.2,3283.1,3.2078]
[1736540409966,0.30461,3282.8,3282.7,0.30461]
[1736540410259,0.30458,3283.1,3283.0,0.30457]
[1736540410660,3.05652247,3283.5,3282.8,0.4441]
[1736540410865,0.30459,3283.0,3282.9,0.30459]
[1736540411060,0.30458,3283.1,3283.0,0.30458]
[1736540411768,0.30458,3283.1,3283.0,3.51238]
[1736540412158,0.30458,3283.1,3283.0,3.2078]
[1736540412365,0.3046,3282.8,3282.7,40.8]
[1736540412566,0.3046,3282.8,3282.4,3.2078]
[1736540412567,2.11922247,3282.8,3282.4,3.2078]
[1736540412769,0.30463,3282.5,3282.4,3.2078]
[1736540413067,0.30463,3282.5,3281.3,4.4566]
[1736540413068,5.32702247,3282.5,3281.3,4.4566]
[1736540413262,0.30473,3281.4,3281.3,3.51254]
[1736540413459,0.30473,3281.4,3281.3,44.0078]
[1736540414263,0.30477,3281.0,3280.9,3.51257]
[1736540414469,0.30477,3281.0,3280.9,3.51258]
[1736540414666,0.30477,3281.0,3280.9,44.31258]
[1736540414970,0.30476,3281.1,3281.0,0.30476]
[1736540415569,0.30475,3281.3,3281.2,0.30475]
[1736540416270,0.30474,3281.4,3281.3,0.30474]
[1736540417067,0.30475,3281.3,3281.2,0.30475]
[1736540417463,2.11922247,3281.5,3280.9,44.4814]
[1736540417668,0.30476,3281.2,3281.1,0.30475]
[1736540417864,0.30474,3281.4,3281.3,0.30473]
[1736540418663,0.30475,3281.3,3281.2,0.30475]
[1736540418863,4.1683,3281.7,3280.9,44.4814]
[1736540419064,0.30477,3281.1,3281.0,0.30476]
[1736540419464,2.11922247,3281.5,3280.9,44.0078]
[1736540419664,0.30477,3281.1,3281.0,0.30477]
[1736540419869,2.11922247,3281.5,3280.9,44.0078]
[1736540420170,0.30475,3281.3,3281.2,0.30475]
[1736540420866,4.1683,3281.7,3280.9,44.0078]
[1736540421171,0.30475,3281.2,3281.1,0.30475]
[1736540423067,1.2652,3281.7,3281.6,0.30471]
[1736540423265,2.11922247,3282.1,3281.4,3.2078]
[1736540423571,0.4562,3282.1,3281.5,3.96962]
[1736540423765,0.30468,3282.0,3281.9,0.30468]
[1736540424070,0.30462,3282.6,3282.3,0.30464]
[1736540424366,3.37822247,3282.7,3282.2,0.30465]
[1736540424367,0.30466,3282.3,3282.2,0.30465]
[1736540424566,0.76156,3282.6,3282.0,0.4736]
[1736540424765,0.30467,3282.1,3282.0,0.77827]
[1736540424961,0.30465,3282.3,3282.2,0.30465]
[1736540425363,0.30465,3282.3,3282.2,41.10465]
[1736540428464,5.32702247,3282.4,3281.4,3.2078]
[1736540428668,0.30471,3281.8,3281.7,0.3047]
[1736540428874,0.76163,3282.3,3281.4,3.2078]
[1736540428875,0.30469,3281.9,3281.8,0.30469]
[1736540429265,0.30471,3281.8,3281.7,0.3047]
[1736540430370,1.3715,3282.1,3281.4,44.0078]
[1736540430371,0.30472,3281.7,3281.6,0.30471]
[1736540430572,0.30472,3281.5,3281.4,44.0078]
[1736540430773,0.30472,3281.5,3281.4,40.8]
[1736540431761,0.30472,3281.5,3281.4,41.10473]
[1736540432767,0.30472,3281.6,3281.5,0.30471]
[1736540432966,1.267,3281.9,3281.4,44.0078]
[1736540433167,0.30471,3281.7,3281.6,0.3047]
[1736540433573,0.30472,3281.5,3281.4,44.31253]
[1736540433871,0.30472,3281.5,3281.4,44.0078]
[1736540434082,0.30471,3281.7,3281.6,0.30471]
[1736540434574,1.267,3282.0,3281.4,44.0078]
[1736540434575,0.30472,3281.6,3281.5,0.30472]
[1736540434768,1.267,3282.0,3281.5,0.30472]
[1736540434968,0.3047,3281.8,3281.7,0.30469]
[1736540435271,1.67617,3282.1,3282.0,0.30468]
[1736540435663,1.19967,3282.1,3282.0,0.30468]
[1736540436074,0.75277,3282.1,3282.0,0.30468]
[1736540436473,0.30465,3282.4,3282.3,0.30464]
[1736540436876,2.11922247,3282.4,3281.9,0.4406]
[1736540437071,0.30469,3282.0,3281.9,0.30468]
[1736540437273,1.23961,3282.5,3281.4,40.8]
[1736540437274,0.30472,3281.7,3281.6,0.30471]
[1736540439881,0.30472,3281.5,3281.4,40.8]
[1736540440076,0.30473,3281.4,3281.3,3.2078]
[1736540440377,0.30476,3281.1,3281.0,0.30477]
[1736540440576,0.30476,3281.1,3281.0,41.10477]
[1736540441778,0.30476,3281.2,3281.1,0.30475]
[1736540442480,0.78025,3281.3,3281.2,0.30475]
[1736540442974,0.30474,3281.4,3281.3,0.30473]
[1736540444378,0.4378,3281.5,3281.4,0.30473]
[1736540444579,0.74252,3281.5,3281.4,0.30473]
[1736540447272,0.4378,3281.5,3281.4,0.30473]
[1736540448480,0.74252,3281.5,3281.4,0.30473]
[1736540453385,0.4378,3281.5,3281.2,3.2078]
[1736540453588,0.74253,3281.5,3281.4,0.30473]
[1736540453791,0.4378,3281.5,3281.4,0.30473]
[1736540454295,0.74252,3281.5,3281.4,0.30473]
[1736540456391,0.74252,3281.5,3281.3,3.51254]
[1736540456392,0.30473,3281.4,3281.3,3.51254]
[1736540457501,0.74253,3281.5,3281.4,0.30473]
[1736540460299,3.2078,3282.0,3281.3,3.2078]
[1736540460500,4.1271,3282.0,3281.4,0.76184]
[1736540460804,0.30472,3281.7,3281.6,0.3047]
[1736540462706,0.3047,3281.9,3281.8,0.30469]
[1736540462905,0.9193,3282.0,3281.5,0.76181]
[1736540463103,0.30467,3282.1,3282.0,0.30468]
[1736540463309,0.76447,3282.2,3282.1,0.30467]
[1736540463510,1.22515,3282.4,3282.3,0.30465]
[1736540463807,12.99256729,3282.8,3282.3,40.8]
[1736540463999,0.30463,3282.6,3282.5,0.30462]
[1736540464200,0.30463,3282.6,3282.3,40.8]
[1736540464201,2.88078247,3282.7,3282.3,40.8]
[1736540464400,2.42386247,3282.4,3282.3,40.8]
[1736540464709,0.30469,3282.0,3281.9,0.30468]
[1736540465295,0.4503,3282.3,3281.9,40.8]
[1736540465498,0.30467,3282.2,3282.1,0.30466]
[1736540466502,0.4503,3282.3,3281.9,40.8]
[1736540466804,2.88092247,3282.1,3281.6,3.51251]
[1736540467005,0.30471,3281.7,3281.6,3.51251]
[1736540467199,0.30471,3281.7,3281.6,44.31251]
[1736540467705,0.30471,3281.7,3281.6,44.0078]
[1736540468008,0.30471,3281.7,3281.6,44.31252]
[1736540468409,0.30471,3281.7,3281.6,44.0078]
[1736540468606,0.30471,3281.7,3281.6,44.31252]
[1736540468806,0.30471,3281.7,3281.6,44.0078]
[1736540469009,0.30471,3281.7,3281.6,40.8]
[1736540469510,0.30473,3281.4,3281.3,0.30474]
[1736540469902,0.30477,3281.1,3281.0,0.30476]
[1736540470208,3.2078,3281.2,3280.7,0.30479]
[1736540470508,3.2078,3281.2,3280.5,0.8952]
[1736540470509,2.11922247,3280.9,3280.5,0.4429]
[1736540470703,2.42401247,3280.9,3280.8,0.30479]
[1736540471113,2.11922247,3280.9,3280.6,40.8]
[1736540471310,0.3048,3280.8,3280.7,0.30479]
[1736540471506,2.11922247,3280.9,3280.5,0.4429]
[1736540471815,0.30479,3280.8,3280.7,0.3048]
[1736540472009,2.11922247,3280.9,3280.4,44.0078]
[1736540472407,0.30482,3280.5,3280.4,41.10482]
[1736540472609,0.30482,3280.5,3280.4,40.8]
[1736540477014,2.42404247,3280.5,3280.4,40.8]
[1736540477312,0.30484,3280.3,3280.2,3.2078]
[1736540477612,0.30487,3280.0,3279.9,0.30487]
[1736540477809,0.30486,3280.1,3280.0,0.30486]
[1736540478311,0.30486,3280.1,3280.0,41.10486]
[1736540478513,0.4376,3280.3,3280.2,0.30485]
[1736540478817,0.30483,3280.4,3280.3,0.30484]
[1736540480317,0.30484,3280.3,3280.2,0.74934]
[1736540480817,0.4533,3280.6,3280.1,3.2078]
[1736540481012,0.30485,3280.2,3280.1,3.2078]
[1736540481211,2.42407247,3280.2,3280.1,3.2078]
[1736540481716,0.30485,3280.2,3280.1,3.2078]
[1736540484710,0.30485,3280.2,3279.6,0.30489]
[1736540484711,0.30489,3279.7,3279.6,0.30489]
[1736540485112,0.30489,3279.7,3279.6,40.8]
[1736540485315,0.30489,3279.7,3279.6,41.1049]
[1736540485915,0.30489,3279.7,3279.6,40.8]
[1736540486625,0.3049,3279.6,3279.5,3.51271]
[1736540486819,0.3049,3279.6,3279.5,3.2078]
[1736540487014,0.3049,3279.6,3279.5,3.51271]
[1736540487820,0.3049,3279.6,3279.5,44.31271]
[1736540488016,0.4357,3280.0,3279.5,44.0078]
[1736540488218,0.74057,3280.0,3279.9,3.2078]
[1736540488522,0.30489,3279.8,3279.7,0.30488]
[1736540488720,0.30488,3279.9,3279.8,0.30487]
[1736540488916,0.74057,3280.0,3279.9,0.30487]
[1736540489119,0.30489,3279.8,3279.5,44.0078]
[1736540489320,0.4357,3280.0,3279.5,44.0078]
[1736540489519,0.30488,3279.9,3279.8,0.30487]
[1736540490522,0.30487,3280.0,3279.9,0.30487]
[1736540490720,2.11922247,3280.8,3279.9,3.2078]
[1736540490920,0.4561,3280.7,3280.6,0.30481]
[1736540491227,0.4724,3281.0,3280.9,0.30478]
[1736540491520,2.11922247,3281.1,3280.4,3.2078]
[1736540491722,0.30481,3280.7,3280.6,41.1048]
[1736540491929,0.3048,3280.8,3280.7,0.30479]
[1736540493418,2.11922247,3281.1,3280.6,40.8]
[1736540493622,0.30479,3280.9,3280.8,0.30478]
[1736540494025,2.1727,3281.3,3280.7,0.4728]
[1736540494230,2.1727,3281.3,3281.0,0.30477]
[1736540494231,0.30477,3281.1,3281.0,0.30477]
[1736540495533,0.30478,3280.9,3280.8,3.51259]
[1736540495732,0.30478,3280.9,3280.8,0.30479]
[1736540496032,0.30477,3281.1,3281.0,0.30477]
[1736540496725,0.9127,3281.3,3281.1,0.30476]
[1736540496726,0.30477,3281.2,3281.1,0.30476]
[1736540496928,0.76136,3281.3,3281.2,0.30475]
[1736540497728,0.30473,3281.5,3281.4,0.30474]
[1736540497931,2.11922247,3282.1,3281.4,3.2078]
[1736540498229,3.669,3282.3,3281.8,0.30469]
[1736540498230,0.3047,3281.9,3281.8,0.30469]
[1736540498433,0.3047,3281.9,3281.8,41.10469]
[1736540498831,0.3047,3281.9,3281.8,40.8]
[1736540499930,0.30473,3281.5,3281.4,3.51253]
[1736540500330,0.30473,3281.5,3281.4,3.2078]
[1736540501130,0.76173,3282.0,3281.5,0.30472]
[1736540501131,0.30472,3281.6,3281.5,0.30472]
[1736540502230,0.30469,3281.9,3281.8,0.30469]
[1736540502740,0.30471,3281.7,3281.6,0.30471]
[1736540503130,2.11922247,3282.1,3281.4,3.2078]
[1736540503437,0.30472,3281.5,3281.4,3.2078]
[1736540504632,0.9015,3281.6,3281.1,0.30476]
[1736540504633,0.30475,3281.2,3281.1,0.30476]
[1736540505025,0.30476,3281.1,3281.0,3.2078]
[1736540505226,0.30477,3281.0,3280.9,40.8]
[1736540505432,0.3048,3280.7,3280.6,3.5126]
[1736540505839,0.3048,3280.7,3280.6,44.3126]
[1736540507042,0.9352,3280.9,3280.7,0.30479]
[1736540507043,0.30479,3280.8,3280.7,0.30479]
[1736540507942,0.4352,3281.1,3280.6,44.0078]
[1736540508139,0.30479,3280.9,3280.8,0.30477]
[1736540510645,0.3048,3280.8,3280.7,0.30479]
[1736540513247,0.30479,3280.9,3280.8,0.30478]
[1736540514650,0.9221,3281.4,3280.6,44.0078]
[1736540514848,0.30474,3281.4,3281.3,0.30474]
[1736540515754,0.3047,3281.8,3281.7,0.30469]
[1736540515943,0.3047,3281.8,3281.7,3.51249]
[1736540516347,0.30469,3281.9,3281.8,0.30469]
[1736540517456,0.4637,3282.0,3281.7,40.8]
[1736540517648,0.3047,3281.8,3281.7,41.10469]
[1736540517847,0.76838,3282.0,3281.9,0.30469]
[1736540518050,0.4496,3282.2,3281.8,3.2078]
[1736540518347,0.4496,3282.2,3282.1,0.30467]
[1736540518547,0.4622,3282.5,3281.8,4.1115]
[1736540518754,0.30467,3282.3,3282.2,0.30466]
[1736540519753,0.30467,3282.3,3282.2,3.51246]
[1736540520357,0.30467,3282.3,3281.8,1.66543]
[1736540520358,0.30467,3282.1,3282.0,0.30467]
[1736540521459,0.30466,3282.2,3282.1,0.30465]
[1736540521657,0.30466,3282.3,3282.2,0.30465]
[1736540521962,0.4622,3282.5,3282.4,0.30464]
[1736540522260,0.4622,3282.5,3282.2,3.2078]
[1736540522561,0.30465,3282.3,3282.2,0.30466]
[1736540522759,0.30465,3282.3,3282.2,3.51246]
[1736540523256,0.30465,3282.3,3282.2,0.30466]
[1736540523863,0.4622,3282.5,3281.8,4.1115]
[1736540524160,0.30469,3281.9,3281.8,3.2078]
[1736540524363,0.30469,3281.9,3281.3,0.76185]
[1736540524364,0.30475,3281.4,3281.3,0.30474]
[1736540524552,0.30476,3281.2,3281.1,0.30475]
[1736540524860,2.11922247,3281.3,3280.9,40.8]
[1736540525060,0.30478,3281.0,3280.9,41.10477]
[1736540525260,0.76182,3281.5,3280.9,41.10477]
[1736540525261,0.30471,3281.7,3281.6,0.30472]
[1736540525559,2.11922247,3282.2,3281.7,0.30471]
[1736540525560,0.7523,3281.8,3281.7,0.30471]
[1736540526060,0.4476,3281.8,3281.7,0.30471]
[1736540526258,0.4546,3282.2,3281.4,5.32702247]
[1736540526562,0.75926,3282.2,3282.1,0.30467]
[1736540526758,0.30468,3282.1,3282.0,0.30467]
[1736540527358,0.30468,3282.1,3282.0,41.10467]
[1736540530459,0.30468,3282.1,3282.0,0.30467]
[1736540531155,0.30468,3282.0,3281.9,44.0078]
[1736540531358,2.57382247,3282.2,3281.6,0.30471]
[1736540531555,0.30471,3281.7,3281.6,0.30471]
[1736540531756,0.76169,3282.1,3281.6,0.30471]
[1736540531964,2.57382247,3282.2,3281.7,40.8]
[1736540531965,0.4546,3282.2,3281.7,40.8]
[1736540532157,0.75927,3282.2,3282.1,0.30467]
[1736540533370,0.4546,3282.2,3281.9,3.2078]
[1736540533559,0.30468,3282.1,3282.0,0.30467]
[1736540533969,0.4546,3282.2,3281.7,41.2486]
[1736540534164,0.30467,3282.1,3281.8,0.30469]
[1736540534363,0.3047,3281.9,3281.8,0.30469]
[1736540535459,0.3047,3281.8,3281.7,41.1047]
[1736540535660,0.76169,3282.1,3281.5,3.2078]
[1736540535867,2.42394247,3281.6,3281.5,3.2078]
[1736540536164,2.42394247,3281.6,3281.2,0.30474]
[1736540536165,0.30475,3281.3,3281.2,0.30474]
[1736540536557,0.9281,3281.5,3281.0,3.2078]
[1736540536761,0.30476,3281.2,3281.1,0.30476]
[1736540536960,0.30476,3281.1,3281.0,3.51257]
[1736540537472,0.30476,3281.1,3281.0,3.2078]
[1736540537959,0.30476,3281.1,3281.0,3.51257]
[1736540538564,0.30476,3281.1,3281.0,3.2078]
[1736540538866,0.30476,3281.1,3281.0,3.51257]
[1736540539463,0.30476,3281.1,3281.0,3.2078]
[1736540539865,0.30476,3281.1,3281.0,3.51257]
[1736540540168,0.30476,3281.1,3281.0,3.2078]
[1736540541062,0.30476,3281.1,3281.0,3.51257]
[1736540541270,0.30477,3281.0,3280.9,41.10478]
[1736540541468,0.78377,3281.0,3280.9,40.8]
[1736540543468,0.78377,3281.0,3280.9,41.10478]
[1736540543863,0.30476,3281.2,3280.9,40.8]
[1736540544061,3.2078,3281.4,3280.9,40.8]
[1736540544062,0.30474,3281.4,3281.3,0.30474]
[1736540545570,0.9281,3281.5,3281.4,0.30473]
[1736540545773,0.30469,3281.9,3281.8,0.30469]
[1736540545969,3.78779247,3282.2,3281.7,3.2078]
[1736540546175,3.78779247,3282.2,3281.5,0.4801]
[1736540546468,0.3047,3281.8,3281.7,0.3047]
[1736540547271,3.78779247,3282.2,3281.5,3.6879]
[1736540547272,3.02612247,3282.2,3281.5,3.6879]
[1736540547463,3.02612247,3282.2,3281.9,0.30468]
[1736540547464,0.30468,3282.0,3281.9,0.30468]
[1736540547668,0.30469,3281.9,3281.8,0.30469]
[1736540547870,0.30473,3281.5,3281.4,0.30472]
[1736540548666,0.30474,3281.4,3281.3,0.30474]
[1736540548877,0.4721,3281.5,3281.4,0.30473]
[1736540549176,0.4721,3281.5,3281.1,3.2078]
[1736540549476,0.30475,3281.2,3281.1,3.2078]
[1736540549673,0.30475,3281.2,3281.1,3.51256]
[1736540549874,0.30475,3281.2,3281.1,3.2078]
[1736540550177,0.30475,3281.2,3281.0,0.30476]
[1736540550178,0.30477,3281.1,3281.0,0.30476]
[1736540550669,0.30477,3281.0,3280.9,40.8]
[1736540550871,2.42399247,3281.0,3280.9,40.8]
[1736540551065,2.11922247,3281.0,3280.2,3.2078]
[1736540551377,0.30485,3280.2,3280.1,0.30485]
[1736540551564,0.30484,3280.3,3280.2,0.30484]
[1736540552267,0.30485,3280.3,3280.2,0.30484]
[1736540552468,0.30485,3280.2,3280.1,41.10485]
[1736540552862,0.9332,3280.6,3280.2,0.30484]
[1736540553066,0.30484,3280.3,3280.2,0.30484]
[1736540553274,0.4721,3280.9,3280.2,3.2078]
[1736540553471,0.30478,3280.9,3280.8,0.30479]
[1736540553878,0.30478,3280.9,3280.6,3.2078]
[1736540553879,0.30479,3280.8,3280.7,0.4547]
[1736540554174,0.30479,3280.8,3280.7,40.8]
[1736540554365,0.30479,3280.8,3280.7,41.1048]
[1736540555972,0.9409,3281.3,3280.7,40.8]
[1736540556171,1.24565,3281.3,3281.2,0.30475]
[1736540556371,5.23158,3281.7,3281.0,3.2078]
[1736540556372,4.4698,3281.7,3281.0,3.2078]
[1736540556574,0.30473,3281.5,3281.1,0.4699]
[1736540556771,0.30472,3281.6,3281.1,0.4699]
[1736540556972,0.30473,3281.5,3281.4,3.51253]
[1736540557173,0.30473,3281.5,3281.4,0.30473]
[1736540557575,0.30473,3281.5,3281.1,0.4699]
[1736540557576,1.262,3281.7,3281.1,0.4699]
[1736540557767,1.262,3281.7,3281.3,3.2078]
[1736540557966,0.30473,3281.5,3281.4,0.30473]
[1736540559171,0.30471,3281.7,3281.6,0.30471]
[1736540559372,0.30471,3281.7,3281.6,3.2078]
[1736540559775,0.30472,3281.6,3281.5,0.30472]
[1736540560176,0.30474,3281.4,3281.3,0.30474]
[1736540560780,2.11922247,3281.6,3281.2,3.2078]
[1736540560982,0.30473,3281.5,3281.4,0.30473]
[1736540561379,2.11922247,3281.6,3281.2,3.2078]
[1736540561679,2.42396247,3281.3,3281.2,3.2078]
[1736540561978,0.30474,3281.3,3281.2,3.51255]
[1736540562371,0.30474,3281.4,3281.3,0.30474]
[1736540562774,0.30474,3281.3,3281.2,3.51255]
[1736540563976,2.42396247,3281.3,3281.2,3.2078]
[1736540564282,0.30478,3280.9,3280.8,0.30479]
[1736540564481,0.30479,3280.8,3280.7,40.8]
[1736540564682,0.75609,3280.8,3280.7,40.8]
[1736540564878,0.75609,3280.8,3280.0,1.19625]
[1736540564879,3.6591,3280.8,3280.0,3.2078]
[1736540565079,2.11922247,3280.5,3280.0,3.2078]
[1736540565278,0.30484,3280.3,3280.2,0.30484]
[1736540566475,0.78113,3280.4,3280.3,0.30484]
[1736540568482,1.262,3281.0,3280.4,0.76206]
[1736540568683,0.78029,3280.8,3280.7,0.30478]
[1736540569481,0.78029,3280.8,3280.7,41.10478]
[1736540570077,1.262,3281.0,3280.9,0.30478]
[1736540570584,1.56677,3281.0,3280.9,0.30478]
[1736540571282,1.262,3281.0,3280.8,3.2078]
[1736540571479,0.30478,3280.9,3280.8,3.51259]
[1736540571674,0.30478,3280.9,3280.8,0.30479]
[1736540572087,0.30478,3280.9,3280.8,3.51259]
[1736540574084,1.56678,3281.0,3280.9,0.30478]
[1736540574283,1.262,3281.0,3280.9,0.30478]
[1736540574488,1.56677,3281.0,3280.9,0.30478]
[1736540575078,1.262,3281.0,3280.9,0.30478]
[1736540576598,0.8724,3281.1,3281.0,0.30477]
[1736540577188,1.17716,3281.1,3281.0,0.30477]
[1736540577391,0.30478,3281.0,3280.9,0.30477]
[1736540577596,2.99162247,3281.1,3280.7,40.8]
[1736540577898,0.30479,3280.8,3280.7,0.30478]
[1736540578197,0.30479,3280.8,3280.7,41.10478]
[1736540579486,0.30479,3280.9,3280.8,0.30478]
[1736540579684,0.30479,3280.8,3280.7,41.10479]
[1736540579889,2.42401247,3280.8,3280.7,41.10479]
[1736540580389,0.30479,3280.8,3280.7,41.10479]
[1736540580792,3.29639247,3281.1,3281.0,0.30477]
[1736540581297,0.8724,3281.1,3281.0,0.30477]
[1736540582890,1.17717,3281.1,3281.0,0.30477]
[1736540583293,0.30478,3281.0,3280.9,0.30478]
[1736540587406,2.99162247,3281.1,3280.3,4.42279]
[1736540587596,0.30481,3280.8,3280.7,0.3048]
[1736540588503,0.30482,3280.7,3280.6,0.30481]
[1736540589699,0.30479,3281.0,3280.9,0.30478]
[1736540589895,0.8724,3281.1,3280.7,3.2078]
[1736540590104,0.8724,3281.1,3281.0,0.30478]
[1736540590296,0.78025,3281.3,3281.2,0.30476]
[1736540592402,0.4423,3281.4,3281.3,0.30475]
[1736540592606,0.74704,3281.4,3281.3,0.30475]
[1736540593007,0.74704,3281.4,3281.3,41.10475]
[1736540594704,0.74704,3281.4,3281.3,40.8]
[1736540594906,2.86626247,3281.4,3281.3,41.10475]
[1736540595107,2.86626247,3281.4,3281.3,40.8]
[1736540595502,2.86626247,3281.4,3281.3,41.10475]
[1736540596009,0.30476,3281.2,3281.1,3.2078]
[1736540596504,0.30476,3281.2,3281.1,44.0078]
[1736540597506,0.476,3281.3,3281.2,0.30476]
[1736540597706,0.74705,3281.4,3281.3,0.30475]
[1736540597911,0.30475,3281.4,3281.3,0.30475]
[1736540598113,0.30475,3281.4,3281.2,0.4764]
[1736540598114,1.25842,3281.7,3281.6,0.30472]
[1736540598311,0.9537,3281.7,3281.2,0.9255]
[1736540598613,0.30473,3281.6,3281.5,0.30472]
[1736540599000,1.25842,3281.7,3281.6,0.30472]
[1736540599206,0.30472,3281.6,3281.5,3.51253]
[1736540599506,4.1615,3281.7,3281.2,0.9255]
[1736540599702,0.3048,3280.7,3280.6,3.2078]
[1736540605016,0.30482,3280.5,3280.4,40.8]
[1736540605207,0.30482,3280.5,3280.4,41.10483]
[1736540605407,0.30482,3280.5,3280.4,40.8]
[1736540605708,0.30482,3280.6,3280.5,0.30482]
[1736540606113,0.30482,3280.5,3280.1,3.2078]
[1736540606310,0.30482,3280.5,3280.3,0.30483]
[1736540606516,0.30483,3280.4,3280.3,0.30483]
[1736540606716,0.30483,3280.4,3280.3,41.10483]
[1736540607212,0.30482,3280.5,3280.4,0.30483]
[1736540608517,0.30483,3280.4,3280.3,41.10484]
[1736540608711,0.30483,3280.4,3280.3,40.8]
[1736540608909,0.30483,3280.4,3280.3,41.10484]
[1736540609715,0.30483,3280.4,3280.3,40.8]
[1736540609917,0.30483,3280.4,3280.3,41.10484]
[1736540610317,0.30483,3280.4,3280.3,40.8]
[1736540610621,4.4738,3280.5,3279.5,3.2078]
[1736540610917,0.30491,3279.6,3279.5,3.2078]
[1736540611114,0.30491,3279.6,3279.5,44.0078]
[1736540611423,2.42413247,3279.6,3279.5,44.0078]
[1736540613920,2.42413247,3279.6,3279.5,40.8]
[1736540614636,0.30495,3279.1,3279.0,0.30496]
[1736540615132,0.30495,3279.1,3279.0,41.10496]
[1736540616829,0.30494,3279.3,3279.2,0.30494]
[1736540617426,0.30494,3279.3,3279.2,44.31274]
[1736540617736,0.30492,3279.5,3279.4,0.30492]
[1736540617920,4.4738,3279.7,3279.2,44.0078]
[1736540618122,3.51271,3279.7,3279.6,0.30491]
[1736540618727,3.2078,3279.7,3279.6,41.10491]
[1736540618923,3.2078,3280.1,3279.6,40.8]
[1736540619129,3.2078,3280.1,3279.8,0.30488]
[1736540619130,0.30489,3279.9,3279.8,0.30488]
[1736540619432,2.42411247,3279.9,3279.8,0.30488]
[1736540621329,0.3049,3279.7,3279.6,44.3127]
[1736540621735,0.30489,3279.8,3279.7,0.30489]
[1736540622434,0.30488,3280.0,3279.7,0.3049]
[1736540622632,0.30488,3280.0,3279.9,0.30488]
[1736540625735,1.22296,3280.2,3280.1,0.30486]
[1736540625934,0.4789,3280.5,3279.9,3.96999]
[1736540626133,0.4789,3280.5,3280.4,3.51263]
[1736540626335,11.87437599,3280.7,3280.6,0.30481]
[1736540626739,0.30479,3280.9,3280.5,0.9009]
[1736540627038,0.30479,3280.9,3280.8,0.3048]
[1736540627340,0.3048,3280.8,3280.7,0.30479]